[Event "Titled Tuesday Blitz June 6 Early 2023"]
[White "Baraeva, Irina"]
[Black "Turzo, Attila"]
[WhiteFideId "24142565"]
[BlackFideId "704954"]
[WhiteElo "2085"]
[BlackElo "2477"]
[Result "0-1"]
[Round "10"]
[TimeControl "180+2"]
[Date "2023.06.06"]
[WhiteClock "0:00:42"]
[BlackClock "0:01:31"]
[Board "95"]

1. d4 {[%clk 0:03:00]}  Nf6 {[%clk 0:02:59]} 2. c4 {[%clk 0:03:00]}  g6 {[%clk 0:02:59]} 3. Nc3 {[%clk 0:02:59]}  Bg7 {[%clk 0:03:00]} 4. e4 {[%clk 0:03:00]}  d6 {[%clk 0:03:00]} 5. Be2 {[%clk 0:03:00]}  O-O {[%clk 0:03:00]} 6. Nf3 {[%clk 0:03:00]}  e5 {[%clk 0:03:00]} 7. O-O {[%clk 0:03:00]}  Nc6 {[%clk 0:03:00]} 8. d5 {[%clk 0:02:57]}  Ne7 {[%clk 0:03:00]} 9. Ne1 {[%clk 0:02:57]}  Ne8 {[%clk 0:03:00]} 10. Be3 {[%clk 0:02:57]}  f5 {[%clk 0:03:00]} 11. f3 {[%clk 0:02:58]}  f4 {[%clk 0:02:58]} 12. Bf2 {[%clk 0:02:58]}  g5 {[%clk 0:02:59]} 13. Nd3 {[%clk 0:02:50]}  h5 {[%clk 0:02:59]} 14. c5 {[%clk 0:02:50]}  Rf6 {[%clk 0:02:55]} 15. cxd6 {[%clk 0:02:49]}  cxd6 {[%clk 0:02:55]} 16. Rc1 {[%clk 0:02:49]}  Rg6 {[%clk 0:02:46]} 17. h3 {[%clk 0:02:03]}  g4 {[%clk 0:02:44]} 18. fxg4 {[%clk 0:02:03]}  hxg4 {[%clk 0:02:44]} 19. hxg4 {[%clk 0:01:59]}  Nf6 {[%clk 0:02:33]} 20. Bh4 {[%clk 0:01:38]}  Nxg4 {[%clk 0:02:28]} 21. Bxg4 {[%clk 0:01:34]}  Bxg4 {[%clk 0:02:26]} 22. Qd2 {[%clk 0:01:33]}  Bh3 {[%clk 0:02:15]} 23. Rf2 {[%clk 0:01:32]}  Qd7 {[%clk 0:02:10]} 24. Bxe7 {[%clk 0:01:24]}  Qxe7 {[%clk 0:02:08]} 25. Ne1 {[%clk 0:01:25]}  Bf6 {[%clk 0:01:54]} 26. Kf1 {[%clk 0:01:17]}  Bd7 {[%clk 0:01:48]} 27. Nf3 {[%clk 0:01:12]}  Bh4 {[%clk 0:01:45]} 28. Nxh4 {[%clk 0:01:12]}  Qxh4 {[%clk 0:01:45]} 29. Qd3 {[%clk 0:00:57]}  Qh1+ {[%clk 0:01:35]} 30. Ke2 {[%clk 0:00:54]}  Qxc1 {[%clk 0:01:36]} 31. Qf3 {[%clk 0:00:42]}  Bg4 {[%clk 0:01:31]} 0-1


[Site "https://www.chess.com"]

[Event "Titled Tuesday Blitz June 6 Early 2023"]
[White "LangesNasenhaar"]
[Black "Goswami, Vedant"]
[BlackFideId "5003725"]
[WhiteElo "2473"]
[BlackElo "2011"]
[Result "0-1"]
[Round "10"]
[TimeControl "180+2"]
[Date "2023.06.06"]
[WhiteClock "0:00:05"]
[BlackClock "0:00:15"]
[Board "96"]

1. d4 {[%clk 0:02:55]}  a6 {[%clk 0:02:56]} 2. g3 {[%clk 0:02:52]}  d5 {[%clk 0:02:53]} 3. Bg2 {[%clk 0:02:52]}  Nf6 {[%clk 0:02:53]} 4. Nf3 {[%clk 0:02:53]}  g6 {[%clk 0:02:52]} 5. O-O {[%clk 0:02:53]}  Bg7 {[%clk 0:02:52]} 6. c4 {[%clk 0:02:53]}  O-O {[%clk 0:02:52]} 7. cxd5 {[%clk 0:02:53]}  Nxd5 {[%clk 0:02:51]} 8. e4 {[%clk 0:02:53]}  Nb6 {[%clk 0:02:50]} 9. Nc3 {[%clk 0:02:53]}  Nc6 {[%clk 0:02:49]} 10. d5 {[%clk 0:02:51]}  Na5 {[%clk 0:02:42]} 11. h3 {[%clk 0:02:45]}  c6 {[%clk 0:02:36]} 12. Be3 {[%clk 0:02:37]}  Nac4 {[%clk 0:02:31]} 13. Bd4 {[%clk 0:02:36]}  e5 {[%clk 0:02:30]} 14. Bxb6 {[%clk 0:02:33]}  Nxb6 {[%clk 0:02:28]} 15. dxc6 {[%clk 0:02:26]}  bxc6 {[%clk 0:02:20]} 16. Rc1 {[%clk 0:02:15]}  Be6 {[%clk 0:02:16]} 17. b3 {[%clk 0:02:14]}  a5 {[%clk 0:02:08]} 18. Qc2 {[%clk 0:01:45]}  Qe7 {[%clk 0:01:57]} 19. h4 {[%clk 0:01:38]}  h6 {[%clk 0:01:44]} 20. Kh2 {[%clk 0:01:24]}  Rfd8 {[%clk 0:01:42]} 21. Bh3 {[%clk 0:01:22]}  Bf8 {[%clk 0:01:33]} 22. Bxe6 {[%clk 0:01:21]}  Qxe6 {[%clk 0:01:32]} 23. Na4 {[%clk 0:01:16]}  Nxa4 {[%clk 0:01:31]} 24. bxa4 {[%clk 0:01:16]}  Ba3 {[%clk 0:01:26]} 25. Rcd1 {[%clk 0:01:12]}  Bb4 {[%clk 0:01:22]} 26. Kg2 {[%clk 0:01:09]}  c5 {[%clk 0:00:48]} 27. Nd2 {[%clk 0:00:54]}  Rd4 {[%clk 0:00:46]} 28. Nb3 {[%clk 0:00:43]}  Rad8 {[%clk 0:00:32]} 29. Nxd4 {[%clk 0:00:40]}  exd4 {[%clk 0:00:31]} 30. Qe2 {[%clk 0:00:17]}  c4 {[%clk 0:00:29]} 31. e5 {[%clk 0:00:15]}  d3 {[%clk 0:00:26]} 32. Qe4 {[%clk 0:00:14]}  Qd5 {[%clk 0:00:26]} 33. Kf3 {[%clk 0:00:10]}  d2 {[%clk 0:00:17]} 34. Qxd5 {[%clk 0:00:06]}  Rxd5 {[%clk 0:00:16]} 35. Ke4 {[%clk 0:00:05]}  Rd8 {[%clk 0:00:15]} 0-1


[Site "https://www.chess.com"]

[Event "Titled Tuesday Blitz June 6 Early 2023"]
[White "Manon-og, Ramon Jr."]
[Black "Ismayil, Malak"]
[WhiteFideId "5200776"]
[BlackFideId "13412604"]
[WhiteElo "2382"]
[BlackElo "1868"]
[Result "0-1"]
[Round "10"]
[TimeControl "180+2"]
[Date "2023.06.06"]
[WhiteClock "0:00:02"]
[BlackClock "0:00:31"]
[Board "97"]

1. e4 {[%clk 0:02:59]}  e5 {[%clk 0:02:59]} 2. Nf3 {[%clk 0:02:59]}  Nc6 {[%clk 0:02:59]} 3. Bc4 {[%clk 0:03:00]}  Bc5 {[%clk 0:02:58]} 4. c3 {[%clk 0:02:59]}  Nf6 {[%clk 0:02:58]} 5. d4 {[%clk 0:02:59]}  exd4 {[%clk 0:02:59]} 6. e5 {[%clk 0:02:59]}  d5 {[%clk 0:02:59]} 7. Bb5 {[%clk 0:03:00]}  Ne4 {[%clk 0:03:00]} 8. cxd4 {[%clk 0:03:00]}  Bb6 {[%clk 0:02:59]} 9. Be3 {[%clk 0:03:00]}  O-O {[%clk 0:02:59]} 10. Nc3 {[%clk 0:03:01]}  Ba5 {[%clk 0:02:49]} 11. Qb3 {[%clk 0:02:55]}  Ne7 {[%clk 0:02:49]} 12. O-O {[%clk 0:02:51]}  Bxc3 {[%clk 0:02:47]} 13. bxc3 {[%clk 0:02:51]}  c6 {[%clk 0:02:48]} 14. Bd3 {[%clk 0:02:51]}  Bf5 {[%clk 0:02:47]} 15. Qxb7 {[%clk 0:02:41]}  Nxc3 {[%clk 0:02:25]} 16. Bxf5 {[%clk 0:02:33]}  Nxf5 {[%clk 0:02:26]} 17. Qxc6 {[%clk 0:02:33]}  Rc8 {[%clk 0:02:24]} 18. Qa6 {[%clk 0:02:29]}  Rc4 {[%clk 0:02:20]} 19. Qxa7 {[%clk 0:02:22]}  h6 {[%clk 0:01:54]} 20. a4 {[%clk 0:02:09]}  Re8 {[%clk 0:01:54]} 21. a5 {[%clk 0:02:07]}  Re7 {[%clk 0:01:41]} 22. Qb6 {[%clk 0:02:00]}  Qxb6 {[%clk 0:01:33]} 23. axb6 {[%clk 0:02:01]}  Rb7 {[%clk 0:01:33]} 24. Ra8+ {[%clk 0:01:54]}  Kh7 {[%clk 0:01:32]} 25. Ra7 {[%clk 0:01:55]}  Rxa7 {[%clk 0:01:28]} 26. bxa7 {[%clk 0:01:56]}  Ra4 {[%clk 0:01:28]} 27. h3 {[%clk 0:00:45]}  Rxa7 {[%clk 0:01:27]} 28. Kh2 {[%clk 0:00:43]}  Ra2 {[%clk 0:01:24]} 29. Rc1 {[%clk 0:00:37]}  Ne4 {[%clk 0:01:23]} 30. Rc7 {[%clk 0:00:35]}  Kg6 {[%clk 0:01:17]} 31. Rd7 {[%clk 0:00:31]}  Nc3 {[%clk 0:01:06]} 32. Rc7 {[%clk 0:00:20]}  Nd1 {[%clk 0:01:06]} 33. Rd7 {[%clk 0:00:18]}  Ndxe3 {[%clk 0:01:05]} 34. fxe3 {[%clk 0:00:19]}  Nxe3 {[%clk 0:01:06]} 35. Nh4+ {[%clk 0:00:14]}  Kh5 {[%clk 0:01:04]} 36. Nf3 {[%clk 0:00:06]}  Rxg2+ {[%clk 0:01:02]} 37. Kh1 {[%clk 0:00:07]}  Rg3 {[%clk 0:01:01]} 38. Rxf7 {[%clk 0:00:07]}  Rxh3+ {[%clk 0:01:00]} 39. Kg1 {[%clk 0:00:08]}  Kg6 {[%clk 0:00:41]} 40. e6 {[%clk 0:00:07]}  Nc4 {[%clk 0:00:32]} 41. Ne5+ {[%clk 0:00:01]}  Nxe5 {[%clk 0:00:32]} 42. dxe5 {[%clk 0:00:02]}  Re3 {[%clk 0:00:31]} 0-1


[Site "https://www.chess.com"]

[Event "Titled Tuesday Blitz June 6 Early 2023"]
[White "Camacho Collados, Jose"]
[Black "Garcia Cuenca, Victor"]
[WhiteFideId "2265427"]
[BlackFideId "2250829"]
[WhiteElo "2212"]
[BlackElo "2329"]
[Result "0-1"]
[Round "10"]
[TimeControl "180+2"]
[Date "2023.06.06"]
[WhiteClock "0:00:05"]
[BlackClock "0:00:16"]
[Board "98"]

1. e4 {[%clk 0:02:57]}  g6 {[%clk 0:02:58]} 2. d4 {[%clk 0:02:56]}  Bg7 {[%clk 0:02:57]} 3. f4 {[%clk 0:02:56]}  d6 {[%clk 0:02:57]} 4. Nf3 {[%clk 0:02:56]}  c6 {[%clk 0:02:55]} 5. Bd3 {[%clk 0:02:55]}  Nf6 {[%clk 0:02:53]} 6. O-O {[%clk 0:02:55]}  O-O {[%clk 0:02:52]} 7. c3 {[%clk 0:02:53]}  a5 {[%clk 0:02:45]} 8. e5 {[%clk 0:02:50]}  Nd5 {[%clk 0:02:44]} 9. a3 {[%clk 0:02:49]}  a4 {[%clk 0:02:43]} 10. c4 {[%clk 0:02:48]}  Nc7 {[%clk 0:02:42]} 11. Nc3 {[%clk 0:02:48]}  Bg4 {[%clk 0:02:23]} 12. Be3 {[%clk 0:02:37]}  Ne6 {[%clk 0:02:01]} 13. d5 {[%clk 0:02:32]}  Nc7 {[%clk 0:01:39]} 14. exd6 {[%clk 0:02:11]}  Qxd6 {[%clk 0:01:31]} 15. h3 {[%clk 0:02:08]}  Bxf3 {[%clk 0:01:27]} 16. Qxf3 {[%clk 0:02:09]}  Bxc3 {[%clk 0:01:26]} 17. bxc3 {[%clk 0:02:06]}  cxd5 {[%clk 0:01:27]} 18. f5 {[%clk 0:01:57]}  Nc6 {[%clk 0:01:22]} 19. Bf4 {[%clk 0:01:14]}  Qc5+ {[%clk 0:01:14]} 20. Kh2 {[%clk 0:01:14]}  dxc4 {[%clk 0:01:11]} 21. Be4 {[%clk 0:01:12]}  Nb5 {[%clk 0:00:57]} 22. Bh6 {[%clk 0:01:05]}  Nd6 {[%clk 0:00:52]} 23. Bxf8 {[%clk 0:00:59]}  Rxf8 {[%clk 0:00:51]} 24. fxg6 {[%clk 0:00:56]}  hxg6 {[%clk 0:00:51]} 25. Bxg6 {[%clk 0:00:52]}  Ne5 {[%clk 0:00:51]} 26. Bh7+ {[%clk 0:00:29]}  Kxh7 {[%clk 0:00:48]} 27. Qh5+ {[%clk 0:00:28]}  Kg7 {[%clk 0:00:45]} 28. Qg5+ {[%clk 0:00:28]}  Kh7 {[%clk 0:00:42]} 29. Qxe7 {[%clk 0:00:23]}  Ng6 {[%clk 0:00:36]} 30. Qf6 {[%clk 0:00:14]}  Qe5+ {[%clk 0:00:35]} 31. Kg1 {[%clk 0:00:13]}  Qxf6 {[%clk 0:00:34]} 32. Rxf6 {[%clk 0:00:14]}  Ne4 {[%clk 0:00:33]} 33. Rf3 {[%clk 0:00:10]}  Ne5 {[%clk 0:00:31]} 34. Re3 {[%clk 0:00:09]}  f5 {[%clk 0:00:31]} 35. g4 {[%clk 0:00:08]}  Nd3 {[%clk 0:00:23]} 36. gxf5 {[%clk 0:00:07]}  Rg8+ {[%clk 0:00:22]} 37. Kh2 {[%clk 0:00:06]}  Nd2 {[%clk 0:00:19]} 38. Re7+ {[%clk 0:00:05]}  Kh6 {[%clk 0:00:18]} 39. Re6+ {[%clk 0:00:05]}  Kh5 {[%clk 0:00:18]} 40. Rg6 {[%clk 0:00:05]}  Rf8 {[%clk 0:00:16]} 0-1


[Site "https://www.chess.com"]

[Event "Titled Tuesday Blitz June 6 Early 2023"]
[White "Georg, Heinz"]
[Black "Zaitsev, Alexander"]
[WhiteFideId "4607295"]
[BlackFideId "4164490"]
[WhiteElo "2334"]
[BlackElo "2373"]
[Result "0-1"]
[Round "10"]
[TimeControl "180+2"]
[Date "2023.06.06"]
[WhiteClock "0:00:02"]
[BlackClock "0:00:08"]
[Board "99"]

1. e4 {[%clk 0:02:59]}  c5 {[%clk 0:02:59]} 2. Nf3 {[%clk 0:02:59]}  g6 {[%clk 0:02:59]} 3. d4 {[%clk 0:02:57]}  cxd4 {[%clk 0:03:00]} 4. Qxd4 {[%clk 0:02:57]}  Nf6 {[%clk 0:02:57]} 5. e5 {[%clk 0:02:57]}  Nc6 {[%clk 0:02:57]} 6. Qf4 {[%clk 0:02:57]}  Nd5 {[%clk 0:02:56]} 7. Qe4 {[%clk 0:02:57]}  Nb6 {[%clk 0:02:55]} 8. c4 {[%clk 0:02:56]}  d5 {[%clk 0:02:35]} 9. exd6 {[%clk 0:02:51]}  Bf5 {[%clk 0:02:27]} 10. Qe3 {[%clk 0:02:37]}  Bg7 {[%clk 0:02:05]} 11. c5 {[%clk 0:02:29]}  Nd5 {[%clk 0:01:55]} 12. Qb3 {[%clk 0:02:27]}  Ndb4 {[%clk 0:01:48]} 13. Na3 {[%clk 0:02:26]}  exd6 {[%clk 0:01:37]} 14. Bb5 {[%clk 0:02:22]}  dxc5 {[%clk 0:01:28]} 15. Bxc6+ {[%clk 0:02:17]}  bxc6 {[%clk 0:01:14]} 16. O-O {[%clk 0:02:16]}  O-O {[%clk 0:01:14]} 17. Be3 {[%clk 0:02:11]}  Qe7 {[%clk 0:00:53]} 18. Rac1 {[%clk 0:02:06]}  Nd3 {[%clk 0:00:53]} 19. Bxc5 {[%clk 0:01:35]}  Nxc5 {[%clk 0:00:30]} 20. Qb4 {[%clk 0:01:35]}  Rab8 {[%clk 0:00:17]} 21. Qxc5 {[%clk 0:01:30]}  Qxc5 {[%clk 0:00:17]} 22. Rxc5 {[%clk 0:01:30]}  Rxb2 {[%clk 0:00:18]} 23. Rxc6 {[%clk 0:01:26]}  Rxa2 {[%clk 0:00:18]} 24. Nb5 {[%clk 0:01:25]}  Bd7 {[%clk 0:00:15]} 25. Rc5 {[%clk 0:01:21]}  Ra5 {[%clk 0:00:15]} 26. Rb1 {[%clk 0:01:17]}  Rb8 {[%clk 0:00:16]} 27. Rd1 {[%clk 0:00:52]}  Bxb5 {[%clk 0:00:13]} 28. h4 {[%clk 0:00:47]}  h6 {[%clk 0:00:12]} 29. Kh2 {[%clk 0:00:40]}  a6 {[%clk 0:00:12]} 30. g4 {[%clk 0:00:29]}  Ra4 {[%clk 0:00:12]} 31. Kh3 {[%clk 0:00:28]}  Ra3 {[%clk 0:00:12]} 32. Kg2 {[%clk 0:00:27]}  Be2 {[%clk 0:00:12]} 33. Rdc1 {[%clk 0:00:18]}  Bxf3+ {[%clk 0:00:11]} 34. Kh2 {[%clk 0:00:18]}  Bf8 {[%clk 0:00:10]} 35. R5c2 {[%clk 0:00:11]}  Bd6+ {[%clk 0:00:10]} 36. Kg1 {[%clk 0:00:11]}  Bxg4 {[%clk 0:00:10]} 37. f3 {[%clk 0:00:06]}  Bxf3 {[%clk 0:00:10]} 38. Kf2 {[%clk 0:00:06]}  Be4 {[%clk 0:00:10]} 39. Re2 {[%clk 0:00:05]}  f5 {[%clk 0:00:09]} 40. Rd1 {[%clk 0:00:04]}  Rb6 {[%clk 0:00:08]} 41. Red2 {[%clk 0:00:02]}  Bc5+ {[%clk 0:00:09]} 42. Kf1 {[%clk 0:00:02]}  Rf3+ {[%clk 0:00:08]} 0-1


[Site "https://www.chess.com"]

[Event "Titled Tuesday Blitz June 6 Early 2023"]
[White "Jovic, Stanoje"]
[Black "Pavlidou, Ekaterini"]
[WhiteFideId "905020"]
[BlackFideId "4213262"]
[WhiteElo "2236"]
[BlackElo "2126"]
[Result "1-0"]
[Round "10"]
[TimeControl "180+2"]
[Date "2023.06.06"]
[WhiteClock "0:01:08"]
[BlackClock "0:01:42"]
[Board "100"]

1. c4 {[%clk 0:03:00]}  e5 {[%clk 0:02:59]} 2. g3 {[%clk 0:02:59]}  Nc6 {[%clk 0:03:00]} 3. Bg2 {[%clk 0:02:59]}  g6 {[%clk 0:03:00]} 4. Nc3 {[%clk 0:02:56]}  Bg7 {[%clk 0:03:01]} 5. Nf3 {[%clk 0:02:56]}  d6 {[%clk 0:03:01]} 6. O-O {[%clk 0:02:55]}  Nge7 {[%clk 0:03:01]} 7. d3 {[%clk 0:02:53]}  h6 {[%clk 0:03:01]} 8. Rb1 {[%clk 0:02:53]}  Be6 {[%clk 0:03:02]} 9. b4 {[%clk 0:02:51]}  Qd7 {[%clk 0:03:02]} 10. b5 {[%clk 0:02:51]}  Nd8 {[%clk 0:03:02]} 11. e4 {[%clk 0:02:45]}  f5 {[%clk 0:03:01]} 12. Nd5 {[%clk 0:02:43]}  O-O {[%clk 0:02:58]} 13. Nh4 {[%clk 0:02:40]}  Bxd5 {[%clk 0:02:55]} 14. cxd5 {[%clk 0:02:38]}  f4 {[%clk 0:02:54]} 15. gxf4 {[%clk 0:02:26]}  exf4 {[%clk 0:02:53]} 16. Bb2 {[%clk 0:02:23]}  g5 {[%clk 0:02:48]} 17. Bxg7 {[%clk 0:02:21]}  Kxg7 {[%clk 0:02:48]} 18. Nf5+ {[%clk 0:02:19]}  Nxf5 {[%clk 0:02:48]} 19. exf5 {[%clk 0:02:20]}  Qxf5 {[%clk 0:02:46]} 20. Be4 {[%clk 0:02:12]}  Qf6 {[%clk 0:02:46]} 21. f3 {[%clk 0:02:07]}  Nf7 {[%clk 0:02:46]} 22. Rc1 {[%clk 0:02:06]}  Rac8 {[%clk 0:02:43]} 23. Qa4 {[%clk 0:02:05]}  a5 {[%clk 0:02:18]} 24. bxa6 {[%clk 0:01:43]}  bxa6 {[%clk 0:02:15]} 25. Rc6 {[%clk 0:01:37]}  Ne5 {[%clk 0:02:11]} 26. Rxa6 {[%clk 0:01:35]}  g4 {[%clk 0:02:08]} 27. d4 {[%clk 0:01:23]}  gxf3 {[%clk 0:02:03]} 28. Kh1 {[%clk 0:01:14]}  Ng4 {[%clk 0:01:57]} 29. Qd7+ {[%clk 0:01:10]}  Kh8 {[%clk 0:01:42]} 30. Qh7# {[%clk 0:01:08]} 1-0


[Site "https://www.chess.com"]

[Event "Titled Tuesday Blitz June 6 Early 2023"]
[White "Ramirez Vido, Robert Yorisan"]
[Black "Yanayt, Eugene"]
[WhiteFideId "3513823"]
[BlackFideId "2020165"]
[WhiteElo "2455"]
[BlackElo "2083"]
[Result "0-1"]
[Round "10"]
[TimeControl "180+2"]
[Date "2023.06.06"]
[WhiteClock "0:00:01"]
[BlackClock "0:01:57"]
[Board "102"]

1. f4 {[%clk 0:03:00]}  d5 {[%clk 0:02:58]} 2. Nf3 {[%clk 0:03:00]}  g6 {[%clk 0:02:58]} 3. g3 {[%clk 0:03:01]}  Bg7 {[%clk 0:02:59]} 4. Bg2 {[%clk 0:03:02]}  c5 {[%clk 0:02:59]} 5. d3 {[%clk 0:03:03]}  b6 {[%clk 0:02:59]} 6. O-O {[%clk 0:03:03]}  Bb7 {[%clk 0:02:59]} 7. c3 {[%clk 0:03:02]}  Nc6 {[%clk 0:02:58]} 8. e4 {[%clk 0:03:01]}  dxe4 {[%clk 0:02:58]} 9. dxe4 {[%clk 0:03:02]}  Nf6 {[%clk 0:02:57]} 10. Na3 {[%clk 0:02:53]}  Ba6 {[%clk 0:02:55]} 11. Qa4 {[%clk 0:02:42]}  Qc8 {[%clk 0:02:47]} 12. e5 {[%clk 0:02:25]}  Nd5 {[%clk 0:02:47]} 13. Ng5 {[%clk 0:02:18]}  e6 {[%clk 0:02:43]} 14. c4 {[%clk 0:01:50]}  Nb4 {[%clk 0:02:43]} 15. Bd2 {[%clk 0:01:35]}  O-O {[%clk 0:02:41]} 16. Bxb4 {[%clk 0:01:26]}  Nxb4 {[%clk 0:02:41]} 17. Bxa8 {[%clk 0:01:16]}  Qxa8 {[%clk 0:02:42]} 18. Nc2 {[%clk 0:01:16]}  Bxc4 {[%clk 0:02:40]} 19. Rf2 {[%clk 0:01:03]}  b5 {[%clk 0:02:39]} 20. Qa3 {[%clk 0:00:46]}  h6 {[%clk 0:02:27]} 21. Nf3 {[%clk 0:00:21]}  Nd3 {[%clk 0:02:26]} 22. Rff1 {[%clk 0:00:21]}  Qe4 {[%clk 0:02:13]} 23. Nce1 {[%clk 0:00:10]}  Nb4 {[%clk 0:02:06]} 24. Rf2 {[%clk 0:00:07]}  Bd5 {[%clk 0:02:00]} 25. Qc3 {[%clk 0:00:04]}  g5 {[%clk 0:01:58]} 26. fxg5 {[%clk 0:00:03]}  hxg5 {[%clk 0:01:57]} 27. Rd1 {[%clk 0:00:01]}  g4 {[%clk 0:01:57]} 0-1


[Site "https://www.chess.com"]

[Event "Titled Tuesday Blitz June 6 Early 2023"]
[White "Sanhueza, Cristian"]
[Black "Antonio, Jorge Carlos"]
[WhiteFideId "116815"]
[BlackFideId "113190"]
[WhiteElo "2174"]
[BlackElo "2247"]
[Result "1-0"]
[Round "10"]
[TimeControl "180+2"]
[Date "2023.06.06"]
[WhiteClock "0:01:43"]
[BlackClock "0:00:02"]
[Board "103"]

1. e4 {[%clk 0:03:00]}  c5 {[%clk 0:02:28]} 2. Nf3 {[%clk 0:02:58]}  e6 {[%clk 0:02:28]} 3. d4 {[%clk 0:02:58]}  cxd4 {[%clk 0:02:27]} 4. Nxd4 {[%clk 0:02:59]}  a6 {[%clk 0:02:27]} 5. Be2 {[%clk 0:02:59]}  Nc6 {[%clk 0:02:27]} 6. O-O {[%clk 0:02:59]}  Qc7 {[%clk 0:02:27]} 7. Kh1 {[%clk 0:02:58]}  Nf6 {[%clk 0:02:26]} 8. Nc3 {[%clk 0:02:57]}  Bb4 {[%clk 0:02:26]} 9. Bg5 {[%clk 0:02:56]}  Bxc3 {[%clk 0:02:21]} 10. Bxf6 {[%clk 0:02:55]}  Bxd4 {[%clk 0:02:21]} 11. Bxd4 {[%clk 0:02:54]}  Nxd4 {[%clk 0:02:18]} 12. Qxd4 {[%clk 0:02:55]}  O-O {[%clk 0:02:17]} 13. c4 {[%clk 0:02:48]}  b6 {[%clk 0:02:17]} 14. e5 {[%clk 0:02:44]}  Bb7 {[%clk 0:02:15]} 15. Rad1 {[%clk 0:02:42]}  Rfd8 {[%clk 0:02:13]} 16. f4 {[%clk 0:02:42]}  Bc6 {[%clk 0:02:10]} 17. Bf3 {[%clk 0:02:36]}  g6 {[%clk 0:02:06]} 18. Qd6 {[%clk 0:02:31]}  Qxd6 {[%clk 0:01:58]} 19. Rxd6 {[%clk 0:02:32]}  Bxf3 {[%clk 0:01:20]} 20. Rxf3 {[%clk 0:02:33]}  Rab8 {[%clk 0:01:06]} 21. Rfd3 {[%clk 0:02:29]}  Rb7 {[%clk 0:01:04]} 22. Kg1 {[%clk 0:02:26]}  Kf8 {[%clk 0:01:04]} 23. Kf2 {[%clk 0:02:26]}  Ke7 {[%clk 0:01:04]} 24. Ke3 {[%clk 0:02:26]}  Rc8 {[%clk 0:01:03]} 25. b3 {[%clk 0:02:25]}  a5 {[%clk 0:01:00]} 26. g4 {[%clk 0:02:17]}  Rc6 {[%clk 0:00:57]} 27. Rxc6 {[%clk 0:02:10]}  dxc6 {[%clk 0:00:56]} 28. Rd6 {[%clk 0:02:10]}  b5 {[%clk 0:00:51]} 29. Rxc6 {[%clk 0:02:08]}  bxc4 {[%clk 0:00:46]} 30. Rxc4 {[%clk 0:02:09]}  Rb5 {[%clk 0:00:33]} 31. Kd4 {[%clk 0:02:05]}  Rd5+ {[%clk 0:00:32]} 32. Ke4 {[%clk 0:02:05]}  Rd2 {[%clk 0:00:30]} 33. Ra4 {[%clk 0:02:05]}  Rxh2 {[%clk 0:00:28]} 34. Rxa5 {[%clk 0:02:05]}  Re2+ {[%clk 0:00:28]} 35. Kf3 {[%clk 0:02:03]}  Rb2 {[%clk 0:00:25]} 36. Ra7+ {[%clk 0:02:02]}  Kf8 {[%clk 0:00:25]} 37. Ra4 {[%clk 0:01:50]}  h6 {[%clk 0:00:20]} 38. b4 {[%clk 0:01:50]}  Ke8 {[%clk 0:00:19]} 39. a3 {[%clk 0:01:50]}  Kd7 {[%clk 0:00:18]} 40. Ra7+ {[%clk 0:01:50]}  Ke8 {[%clk 0:00:16]} 41. Ra5 {[%clk 0:01:50]}  Kd7 {[%clk 0:00:14]} 42. b5 {[%clk 0:01:50]}  Kc7 {[%clk 0:00:14]} 43. a4 {[%clk 0:01:51]}  Kb7 {[%clk 0:00:12]} 44. Ra6 {[%clk 0:01:50]}  Rb3+ {[%clk 0:00:10]} 45. Ke4 {[%clk 0:01:51]}  Rb4+ {[%clk 0:00:11]} 46. Ke3 {[%clk 0:01:51]}  Rb3+ {[%clk 0:00:10]} 47. Ke2 {[%clk 0:01:50]}  Rb4 {[%clk 0:00:09]} 48. Ke3 {[%clk 0:01:49]}  Rb3+ {[%clk 0:00:09]} 49. Kd2 {[%clk 0:01:50]}  Rb4 {[%clk 0:00:09]} 50. f5 {[%clk 0:01:48]}  Rxg4 {[%clk 0:00:08]} 51. fxe6 {[%clk 0:01:46]}  fxe6 {[%clk 0:00:08]} 52. a5 {[%clk 0:01:44]}  h5 {[%clk 0:00:01]} 53. Rxe6 {[%clk 0:01:44]}  h4 {[%clk 0:00:01]} 54. Re7+ {[%clk 0:01:44]}  Kb8 {[%clk 0:00:01]} 55. a6 {[%clk 0:01:45]}  Ka8 {[%clk 0:00:01]} 56. b6 {[%clk 0:01:45]}  Rd4+ {[%clk 0:00:01]} 57. Ke3 {[%clk 0:01:45]}  Rd8 {[%clk 0:00:02]} 58. Ra7+ {[%clk 0:01:43]} 1-0


[Site "https://www.chess.com"]

[Event "Titled Tuesday Blitz June 6 Early 2023"]
[White "Do Nascimento,Christian Almeida"]
[Black "Sovetbekova, Nurai"]
[WhiteFideId "2143801"]
[BlackFideId "13801910"]
[WhiteElo "2078"]
[BlackElo "1857"]
[Result "1-0"]
[Round "10"]
[TimeControl "180+2"]
[Date "2023.06.06"]
[WhiteClock "0:01:31"]
[BlackClock "0:00:47"]
[Board "106"]

1. d4 {[%clk 0:02:54]}  Nf6 {[%clk 0:02:59]} 2. Bg5 {[%clk 0:02:53]}  d5 {[%clk 0:02:58]} 3. Bxf6 {[%clk 0:02:52]}  exf6 {[%clk 0:02:58]} 4. e3 {[%clk 0:02:52]}  Bd6 {[%clk 0:02:52]} 5. c4 {[%clk 0:02:53]}  dxc4 {[%clk 0:02:52]} 6. Bxc4 {[%clk 0:02:53]}  O-O {[%clk 0:02:52]} 7. Nc3 {[%clk 0:02:52]}  c5 {[%clk 0:02:52]} 8. Nge2 {[%clk 0:02:52]}  Nc6 {[%clk 0:02:46]} 9. O-O {[%clk 0:02:48]}  cxd4 {[%clk 0:02:39]} 10. Nxd4 {[%clk 0:02:44]}  Ne5 {[%clk 0:02:39]} 11. Be2 {[%clk 0:02:43]}  a6 {[%clk 0:02:27]} 12. Nf3 {[%clk 0:02:20]}  Nc6 {[%clk 0:02:11]} 13. Qd2 {[%clk 0:02:13]}  Be6 {[%clk 0:01:55]} 14. Rfd1 {[%clk 0:02:11]}  Bb4 {[%clk 0:01:55]} 15. Nd4 {[%clk 0:02:03]}  Nxd4 {[%clk 0:01:48]} 16. Qxd4 {[%clk 0:02:01]}  Qe7 {[%clk 0:01:43]} 17. Bf3 {[%clk 0:01:55]}  Rfd8 {[%clk 0:01:36]} 18. Nd5 {[%clk 0:01:53]}  Bxd5 {[%clk 0:01:32]} 19. Bxd5 {[%clk 0:01:52]}  Bc5 {[%clk 0:01:23]} 20. Qe4 {[%clk 0:01:34]}  Qd6 {[%clk 0:00:46]} 21. Bxf7+ {[%clk 0:01:31]}  Kxf7 {[%clk 0:00:47]} 22. Rxd6 {[%clk 0:01:31]} 1-0


[Site "https://www.chess.com"]